bitfinex/quotes_SOLUSD_20250919
["timestamp","ask_amount","ask_price","bid_price","bid_amount"]
[1758286068574,4.85704271,241.14,241.11,0.67]
[1758286068887,4.14704271,241.14,241.12,0.67]
[1758286069275,4.14704271,241.14,241.11,0.67]
[1758286069592,4.85704271,241.14,241.11,0.67]
[1758286069970,4.85704271,241.14,241.1,1.92672697]
[1758286070190,4.85704271,241.14,241.1,2.59672697]
[1758286071671,4.14679659,241.15,241.09,1.92672697]
[1758286071892,2.63672697,241.14,241.07,4.09150909]
[1758286072096,0.71,241.13,241.07,4.09150909]
[1758286072396,0.71,241.12,241.07,4.09150909]
[1758286072604,0.71,241.12,241.08,2.59672697]
[1758286073478,4.14748455,241.11,241.09,0.67]
[1758286074299,0.71,241.12,241.09,0.67]
[1758286075788,4.85733104,241.12,241.09,0.67]
[1758286078375,4.14714477,241.13,241.08,6.25629121]
[1758286078583,0.1,241.16,241.11,1.92672697]
[1758286078787,0.1,241.16,241.12,1.92672697]
[1758286079069,0.79,241.16,241.12,2.57672697]
[1758286079777,0.1,241.16,241.13,2.57672697]
[1758286080094,0.1,241.16,241.15,1.92672697]
[1758286080480,0.1,241.16,241.15,2.57672697]
[1758286086510,0.1,241.16,241.14,2.57672697]
[1758286086686,0.1,241.16,241.14,4.23699469]
[1758286087091,0.1,241.16,241.15,0.65]
[1758286087300,0.1,241.16,241.14,2.57672697]
[1758286087493,0.1,241.16,241.12,32.41]
[1758286087687,0.1,241.16,241.13,1.92672697]
[1758286087887,0.1,241.16,241.13,2.57672697]
[1758286088204,0.1,241.16,241.13,7.51285809]
[1758286089191,0.79,241.16,241.13,7.51285809]
[1758286089593,4.93663743,241.16,241.13,5.58613112]
[1758286089901,4.24663743,241.16,241.13,7.51285809]
[1758286091100,0.69,241.15,241.13,4.93613112]
[1758286091679,0.69,241.15,241.11,34.33672697]
[1758286091885,4.24663743,241.16,241.12,0.65]
[1758286092106,4.93663743,241.16,241.12,0.65]
[1758286092486,4.93663743,241.16,241.13,0.65]
[1758286094393,1.92672697,241.14,241.07,0.79216157]
[1758286094615,0.69,241.13,241.08,4.74139459]
[1758286095102,0.69,241.13,241.09,0.65]
[1758286095618,0.69,241.12,241.09,0.65]
[1758286095819,4.83738704,241.12,241.09,0.65]
[1758286096112,4.83738704,241.12,241.08,2.16466762]
[1758286096299,0.69,241.11,241.08,2.16466762]
[1758286096530,0.69,241.1,241.08,2.16466762]
[1758286097012,4.83738704,241.12,241.08,2.16466762]
[1758286097185,0.69,241.11,241.08,2.16466762]
[1758286097508,0.69,241.11,241.08,2.81466762]
[1758286097899,4.83749774,241.11,241.08,2.81466762]
[1758286099210,4.83749774,241.11,241.08,2.16466762]
[1758286099621,0.69,241.1,241.08,2.16466762]
[1758286099982,0.69,241.1,241.06,4.14738704]
[1758286100184,0.69,241.1,241.06,4.79738704]
[1758286100412,0.69,241.1,241.06,0.65]
[1758286100802,16.44232086,241.12,241.06,0.65]
[1758286101109,0.69,241.09,241.06,0.65]
[1758286102092,4.83797022,241.09,241.06,0.65]
[1758286102532,4.83797022,241.09,241.04,6.96277308]
[1758286102821,4.14766557,241.1,241.05,2.57672697]
[1758286103021,4.14766557,241.1,241.06,2.57672697]
[1758286103530,4.83766557,241.1,241.06,2.57672697]
[1758286103819,4.83766557,241.1,241.06,0.65]
[1758286104931,4.8379212,241.09,241.06,0.65]
[1758286105106,4.8379212,241.09,241.05,1.92672697]
[1758286105306,4.8379212,241.09,241.05,2.62672697]
[1758286105834,0.7,241.08,241.05,2.62672697]
[1758286106126,4.14765657,241.1,241.05,2.62672697]
[1758286106307,0.7,241.09,241.05,0.7]
[1758286108027,2.62672697,241.08,241.04,6.96277308]
[1758286108215,0.7,241.07,241.04,2.16538604]
[1758286108416,0.7,241.06,241.04,2.16538604]
[1758286109529,2.62672697,241.08,241.04,2.16538604]
[1758286109716,1.92672697,241.08,241.04,2.16538604]
[1758286109923,0.7,241.07,241.04,2.16538604]
[1758286110222,4.84830243,241.07,241.04,2.16538604]
[1758286110612,6.0750294,241.07,241.04,2.16538604]
[1758286110819,0.7,241.06,241.04,2.16538604]
[1758286111322,6.0750294,241.07,241.04,2.16538604]
[1758286111526,6.7750294,241.07,241.04,2.16538604]
[1758286111836,6.0750294,241.07,241.04,2.16538604]
[1758286112129,4.8483936,241.06,241.04,2.16538604]
[1758286115645,4.1483936,241.06,241.04,2.16538604]
[1758286116211,4.8483936,241.06,241.04,2.16538604]
[1758286118315,6.07490518,241.07,241.04,2.16538604]
[1758286118525,6.77490518,241.07,241.04,2.16538604]
[1758286119030,4.84817821,241.07,241.04,2.16538604]
[1758286119237,0.7,241.06,241.04,2.16538604]
[1758286119722,4.84840456,241.06,241.04,2.16538604]
[1758286120336,4.14840456,241.06,241.04,2.16538604]
[1758286120522,0.7,241.05,241.04,2.16538604]
[1758286121023,6.07513153,241.06,241.04,2.16538604]
[1758286121223,6.77513153,241.06,241.04,2.16538604]
[1758286121823,6.07513153,241.06,241.04,2.16538604]
[1758286122022,0.7,241.05,241.04,2.16538604]
[1758286122931,4.8485169,241.05,241.04,2.16538604]
[1758286123522,4.1485169,241.05,241.04,2.16538604]
[1758286125118,2.16538604,241.09,241.04,4.79211301]
[1758286125306,6.07438354,241.1,241.05,0.7]
[1758286125615,4.14765657,241.1,241.05,0.7]
[1758286126734,4.84765657,241.1,241.06,0.7]
[1758286128531,0.7,241.09,241.06,0.7]
[1758286129640,4.14748455,241.11,241.06,0.7]
[1758286129812,0.7,241.1,241.06,0.7]
[1758286130734,4.84790991,241.09,241.05,0.7]
[1758286131041,4.84790991,241.09,241.05,1.9336551]
[1758286132227,0.7,241.08,241.05,0.7]
[1758286132739,0.7,241.1,241.05,0.7]
[1758286132945,0.7,241.09,241.05,0.7]
[1758286133142,4.14800066,241.08,241.05,0.7]
[1758286134250,4.84784406,241.09,241.04,7.54772844]
[1758286134453,4.14784406,241.09,241.06,0.7]
[1758286134953,4.84784406,241.09,241.06,0.7]
[1758286135142,4.84784406,241.09,241.04,8.24772844]
[1758286135347,4.84784406,241.09,241.05,0.7]
[1758286135735,0.7,241.08,241.05,0.7]
[1758286137031,4.14784406,241.09,241.05,0.7]
[1758286137231,4.84784406,241.09,241.05,0.7]
[1758286140664,0.65,241.09,241.05,0.69]
[1758286141464,0.65,241.09,241.06,0.69]
[1758286142360,4.14765657,241.1,241.06,0.69]
[1758286142660,14.51640958,241.12,241.06,4.83833514]
[1758286142661,0.65,241.12,241.06,4.83833514]
[1758286142836,4.79736585,241.12,241.07,0.69]
[1758286143032,0.65,241.12,241.07,0.69]
[1758286143260,4.14739738,241.12,241.07,1.2336551]
[1758286143463,0.65,241.11,241.07,0.69]
[1758286147175,4.79753302,241.11,241.05,5.38105248]
[1758286147463,1.2336551,241.09,241.04,2.16538604]
[1758286147769,1.8836551,241.08,241.04,2.16538604]
[1758286147969,0.65,241.07,241.04,2.16538604]
[1758286150343,0.65,241.07,241.04,2.85538604]
[1758286150543,4.79784425,241.09,241.05,0.69]
[1758286151464,0.65,241.08,241.05,0.69]
[1758286151776,4.14784425,241.09,241.04,2.16538604]
[1758286151974,4.14784425,241.09,241.06,0.69]
[1758286152153,4.14784425,241.09,241.04,6.31405576]
[1758286152350,4.14784425,241.09,241.05,0.69]
[1758286152672,4.14784425,241.09,241.06,0.69]
[1758286153472,4.14760491,241.11,241.07,0.69]
[1758286153652,4.14760491,241.11,241.05,1.2336551]
[1758286153856,4.14760491,241.11,241.08,0.69]
[1758286154562,0.65,241.12,241.09,0.69]
[1758286154563,4.79731986,241.12,241.09,0.69]
[1758286158090,0.65,241.12,241.09,0.69]
[1758286158270,4.79713383,241.14,241.1,0.69]
[1758286158474,4.79713383,241.14,241.11,0.69]
[1758286159097,0.65,241.13,241.07,6.07078893]
[1758286159281,1.2336551,241.1,241.07,5.38078893]
[1758286159485,0.65,241.09,241.07,5.38078893]
[1758286159777,0.65,241.09,241.05,0.69]
[1758286160080,0.65,241.09,241.06,0.69]
[1758286160278,1.2336551,241.1,241.06,0.69]
[1758286160480,5.38138023,241.1,241.06,0.69]
[1758286160685,6.03138023,241.1,241.06,0.69]
[1758286160860,0.65,241.09,241.05,6.07078893]
[1758286161396,179.51105418,241.16,241.05,5.38078893]
[1758286161563,0.65,241.11,241.06,0.69]
[1758286161763,1.2336551,241.1,241.05,5.38078893]
[1758286161969,1.2336551,241.08,241.05,5.38078893]
[1758286162257,4.79826299,241.07,241.05,5.38078893]
[1758286162461,0.65,241.06,241.02,0.69]
[1758286162860,0.65,241.05,241.02,0.69]
[1758286163784,4.79853264,241.05,241.02,0.69]
[1758286164182,0.65,241.04,241.01,6.31380853]
[1758286164485,0.65,241.03,240.98,0.69]
[1758286164783,1.2336551,241.04,240.98,0.69]
[1758286164974,0.65,241.03,240.98,0.69]
[1758286165176,0.65,241.02,240.98,0.69]
[1758286165493,4.7991775,241.02,240.98,0.69]
[1758286165785,4.1488421,241.04,240.99,0.68]
[1758286166087,0.69,241.03,240.99,0.68]
[1758286166599,4.1488421,241.04,240.99,0.68]
[1758286166781,0.69,241.02,240.97,3.39959561]
[1758286166962,0.69,241.02,240.98,0.68]
[1758286167158,6.31478261,241.04,240.97,3.39959561]
[1758286167159,17.92016024,241.04,240.97,2.16594051]
[1758286167362,4.14903327,241.02,240.97,2.16594051]
[1758286167562,0.69,241.01,240.97,2.84594051]
[1758286169585,4.83921392,241.01,240.97,2.84594051]
[1758286169785,4.83921392,241.01,240.98,0.68]
[1758286170987,4.14903479,241.02,240.99,0.68]
[1758286171996,4.83886783,241.03,240.99,0.68]
[1758286172290,0.69,241.03,241.0,0.68]
[1758286172466,32.9536551,241.05,240.99,0.68]
[1758286172670,0.69,241.02,240.99,0.68]
[1758286172891,0.69,241.02,240.98,0.68]
[1758286175595,0.69,241.01,240.98,0.68]
[1758286175804,0.69,241.0,240.97,2.16594051]
[1758286176398,4.14908925,241.02,240.97,2.84594051]
[1758286176609,0.69,241.01,240.97,2.84594051]
[1758286177100,0.69,241.01,240.98,0.68]
[1758286177299,4.14908925,241.02,240.98,0.68]
[1758286177489,4.83908925,241.02,240.98,0.68]
[1758286178403,0.69,241.01,240.97,2.16594051]
[1758286178599,0.69,241.01,240.97,2.84594051]
[1758286179301,0.69,241.0,240.97,2.16594051]
[1758286179494,4.14886113,241.03,240.97,2.84594051]
[1758286179700,1.9236551,241.02,240.97,2.84594051]
[1758286180004,5.38251623,241.03,240.98,0.68]
[1758286180205,0.69,241.02,240.98,0.68]
[1758286180378,0.69,241.01,240.98,0.68]
[1758286180994,4.83928844,241.01,240.98,0.68]
[1758286182387,4.83928844,241.01,240.97,2.16594051]
[1758286182590,4.83928844,241.01,240.92,0.28432314]
[1758286182591,0.69,241.0,240.93,1.2336551]
[1758286182802,0.69,240.99,240.93,1.2336551]
[1758286183085,0.69,240.98,240.93,3.39988539]
[1758286183302,0.69,240.98,240.94,0.68]
[1758286183500,0.69,240.98,240.95,0.68]
[1758286185588,4.14954977,240.99,240.93,2.16623029]
[1758286185803,4.14954977,240.99,240.95,0.68]
[1758286186313,5.38305153,241.0,240.96,0.68]
[1758286186490,6.07305153,241.0,240.96,0.68]
[1758286187295,5.38305153,241.0,240.93,15.10085582]
[1758286187492,4.83970091,240.99,240.94,0.68]
[1758286187915,4.83970091,240.99,240.95,0.68]
[1758286190693,0.69,240.98,240.95,0.68]
[1758286192017,4.14970091,240.99,240.95,0.68]
[1758286192213,4.83970091,240.99,240.95,0.68]
[1758286192591,1.92941343,241.0,240.96,0.68]
[1758286192837,6.76863847,241.01,240.97,0.68]
[1758286193130,0.69,241.0,240.96,0.68]
[1758286193707,4.83905154,241.02,240.97,0.68]
[1758286193908,0.69,241.01,240.97,0.68]
[1758286194724,11.69927967,241.04,240.97,4.14982863]
[1758286194925,6.76825407,241.04,240.98,0.68]
[1758286197427,6.76825407,241.04,240.98,4.82970835]
[1758286198224,6.07825407,241.04,240.98,4.82970835]
[1758286198423,0.69,241.03,240.98,4.82970835]
[1758286198724,0.69,241.03,240.99,0.67]
[1758286200402,0.69,241.08,241.01,1.92941343]
[1758286200604,0.69,241.08,241.03,1.92941343]
[1758286200904,132.0,241.09,241.04,1.92941343]
[1758286200905,0.69,241.07,241.04,1.92941343]
[1758286201118,0.69,241.06,241.04,1.92941343]
[1758286201421,0.69,241.05,240.98,4.14970835]
[1758286201646,2.61941343,241.04,240.97,1.92941343]
[1758286201817,0.69,241.03,240.97,1.92941343]
[1758286202007,0.69,241.02,241.0,12.45821308]
[1758286202205,0.69,241.01,240.96,1.92941343]
[1758286202427,0.69,241.0,240.96,1.92941343]
[1758286202642,0.69,240.99,240.95,12.45821308]
[1758286203016,0.69,241.01,240.96,0.67]
[1758286203340,1.92941343,241.02,240.97,0.67]
[1758286203519,0.69,241.0,240.96,0.67]
[1758286204229,4.83937801,241.0,240.96,0.67]
[1758286205924,0.69,240.99,240.96,0.67]
[1758286206313,0.69,240.99,240.94,10.8999799]
[1758286206534,0.69,240.99,240.95,0.67]
[1758286209429,4.14940342,241.0,240.96,0.67]
[1758286209633,4.83940342,241.0,240.96,0.67]
[1758286210410,4.14920542,241.01,240.96,0.67]
[1758286210637,0.69,240.99,240.96,0.67]
[1758286211337,2.78106427,241.03,240.94,10.2299799]
[1758286211338,0.69,241.02,240.97,2.59941343]
[1758286211663,0.69,241.01,240.97,0.67]
[1758286212432,0.69,241.01,240.96,1.92941343]
[1758286212739,0.69,241.01,240.98,0.67]
[1758286214437,4.83921638,241.01,240.98,0.67]
[1758286214630,4.83921638,241.01,240.96,2.59941343]
[1758286214836,4.83921638,241.01,240.97,0.67]
[1758286215636,0.69,241.01,240.98,0.67]
[1758286215836,2.61941343,241.03,240.98,0.67]
[1758286216243,1.92941343,241.02,240.98,0.67]
[1758286216646,2.61941343,241.02,240.98,0.67]
[1758286216945,4.8392102,241.01,240.98,0.67]
[1758286217445,4.1492102,241.01,240.96,6.74938788]
[1758286217624,0.69,241.0,240.97,0.67]
[1758286218247,28.11540317,241.05,240.97,0.67]
[1758286218447,0.69,241.01,240.97,0.67]
[1758286219649,0.69,241.0,240.95,12.461318]
[1758286219828,1.92941343,240.98,240.93,2.83623029]
[1758286220141,1.92941343,240.99,240.94,0.67]
[1758286220347,0.69,240.98,240.94,0.67]
[1758286220721,2.61941343,241.0,240.95,0.67]
[1758286220922,0.69,240.99,240.95,0.67]
[1758286221156,6.07871059,241.01,240.96,0.67]
[1758286221342,6.76871059,241.01,240.97,0.67]
[1758286221723,2.78198674,241.02,240.97,0.67]
[1758286221930,1.92941343,241.04,240.97,2.59941343]
[1758286222144,0.69,241.03,240.97,2.59941343]
[1758286222454,0.69,241.02,240.97,0.67]
[1758286222850,0.69,241.02,240.95,6.74948204]
[1758286222851,2.61941343,241.02,240.95,6.74948204]
[1758286223029,0.69,241.01,240.95,2.59941343]
[1758286223231,0.69,241.0,240.95,2.59941343]
[1758286223445,0.69,241.0,240.96,0.67]
[1758286223842,4.14938668,241.0,240.94,10.79128114]
[1758286224042,0.69,240.99,240.94,6.07967367]
[1758286224256,0.69,240.99,240.95,0.67]
[1758286225927,4.83962926,240.99,240.95,0.67]
[1758286226936,4.83962926,240.99,240.94,1.92941343]
[1758286227121,4.85937759,241.0,240.95,0.72]
[1758286227321,4.14937759,241.0,240.95,0.72]
[1758286227553,0.71,240.99,240.95,0.72]
[1758286229256,4.14937759,241.0,240.95,0.72]
[1758286229551,4.85978861,240.98,240.94,0.72]
[1758286230048,4.14978861,240.98,240.93,32.3167443]
[1758286230251,4.14978861,240.98,240.95,0.72]
[1758286230548,0.71,240.99,240.95,0.72]
[1758286231660,0.71,240.98,240.93,2.16626974]
[1758286231953,0.71,240.98,240.94,0.72]
[1758286232146,0.71,240.97,240.94,0.72]
[1758286232664,4.14966064,240.99,240.94,0.72]
[1758286232863,4.8597688,240.98,240.93,2.16626974]
[1758286233065,0.71,240.97,240.93,2.16626974]
[1758286233366,0.71,240.97,240.93,2.88626974]
[1758286233563,4.1497688,240.98,240.94,0.72]
[1758286233860,4.14954977,240.99,240.94,0.72]
[1758286234053,6.07876694,241.01,240.95,0.72]
[1758286234257,6.9313541,241.01,240.95,0.72]
[1758286234561,7.6413541,241.01,240.95,0.72]
[1758286234764,4.85935351,241.01,240.95,0.72]
[1758286236431,6.78876694,241.01,240.95,0.72]
[1758286238134,4.14954977,240.99,240.94,4.15036695]
[1758286238536,0.71,240.98,240.94,4.87036695]
[1758286240174,0.71,240.98,240.94,0.72]
[1758286240357,0.71,240.97,240.94,0.72]
[1758286240556,4.85954977,240.99,240.94,0.72]
[1758286240732,1.92941343,241.0,240.95,0.72]
[1758286240938,0.71,240.98,240.95,0.72]
[1758286241155,0.71,240.98,240.93,7.03683996]
[1758286241360,0.71,240.98,240.94,0.72]
[1758286245158,0.71,240.98,240.95,0.72]
[1758286255550,4.14939797,241.0,240.95,0.72]
[1758286256077,5.38401054,241.01,240.95,4.87021635]
[1758286256277,0.69,240.99,240.95,4.87021635]
[1758286256570,0.69,240.99,240.96,0.72]
[1758286257976,4.14946007,241.0,240.96,0.72]
[1758286258486,0.7,240.99,240.95,4.15021635]
[1758286258650,0.7,240.99,240.95,4.85021635]
[1758286262172,0.7,240.99,240.96,0.7]
[1758286262385,0.7,240.98,240.94,4.85040271]
[1758286262672,4.14942877,241.0,240.95,0.7]
[1758286262874,0.7,240.99,240.95,0.7]
[1758286263260,0.7,240.99,240.96,0.7]
[1758286263974,0.7,240.99,240.95,4.8502225]
[1758286265076,0.7,240.98,240.94,4.15040076]
[1758286265250,0.7,240.98,240.94,4.85040076]
[1758286265454,0.7,240.98,240.95,0.7]
[1758286265673,6.08421754,241.0,240.95,0.7]
[1758286265855,0.7,240.99,240.95,0.7]
[1758286266766,5.38421754,241.0,240.95,0.7]
[1758286266968,0.7,240.99,240.95,0.7]
[1758286267174,3.4842482,240.99,240.95,0.7]
[1758286267377,3.4842482,240.99,240.96,0.7]
[1758286267683,3.4842482,240.99,240.95,0.7]
[1758286268176,3.4842482,240.99,240.96,0.7]
[1758286270462,3.4842482,240.99,240.94,4.15040076]
[1758286270767,3.4842482,240.99,240.95,0.7]
[1758286271388,3.4842482,240.99,240.94,4.15040076]
[1758286271580,3.4842482,240.99,240.96,0.7]
[1758286272084,3.4842482,240.99,240.94,4.15040076]
[1758286272275,0.7,240.98,240.94,4.85040076]
[1758286272474,2.7842482,240.99,240.95,0.7]
[1758286272682,3.4842482,240.99,240.95,0.7]
[1758286273292,3.4842482,240.99,240.95,4.85017814]
[1758286273584,4.14959705,241.05,240.96,0.7]
[1758286273884,0.7,241.0,240.96,0.7]
[1758286274071,1.23478877,241.01,240.96,0.7]
[1758286274272,0.7,240.99,240.96,0.7]
[1758286274471,1.23478877,241.01,240.95,4.15017814]
[1758286274472,0.7,241.01,240.97,0.7]
[1758286274669,2.78470392,241.0,240.97,0.7]
[1758286274880,0.7,241.0,240.95,4.15017814]
[1758286275064,1.03755897,240.99,240.96,0.7]
[1758286275259,0.7,241.0,240.96,0.7]
[1758286275463,1.73755886,240.99,240.96,0.7]
[1758286275668,1.0375862,240.98,240.96,0.7]
[1758286275892,2.78478529,240.99,240.96,0.7]
[1758286276068,1.0375863,240.98,240.96,0.7]
[1758286276270,2.78478529,240.99,240.96,0.7]
[1758286276464,4.14937759,241.0,240.96,0.7]
[1758286276665,3.48478231,240.99,240.96,0.7]
[1758286276876,0.7,240.99,240.96,0.7]
[1758286280395,0.7,240.99,240.94,2.16620727]
[1758286280572,0.7,240.99,240.95,0.7]
[1758286280772,0.7,240.99,240.96,0.7]
[1758286281471,0.7,240.99,240.94,6.31659864]
[1758286281673,0.7,240.99,240.95,0.7]
[1758286282494,0.7,240.98,240.95,0.7]
[1758286282792,3.48506587,240.99,240.95,4.1502285]
[1758286282966,0.7,240.98,240.94,2.16620727]
[1758286283168,0.7,240.97,240.94,2.16620727]
[1758286283497,0.7,240.98,240.94,7.01653064]
[1758286283682,0.7,240.98,240.94,6.31653064]
[1758286283882,0.7,240.98,240.95,0.7]
[1758286284294,6.08417348,241.0,240.95,0.7]
[1758286284491,2.78531622,240.99,240.96,0.7]
[1758286284673,6.08417348,241.0,240.96,0.7]
[1758286284874,2.78531816,240.99,240.96,0.7]
[1758286285075,0.7,240.99,240.96,0.7]
[1758286285293,6.07417348,241.0,240.96,0.7]
[1758286285487,3.47507167,240.99,240.96,0.7]
[1758286285679,0.69,240.99,240.96,0.7]
[1758286286596,3.47468675,240.99,240.96,0.7]
[1758286287105,3.47468675,240.99,240.95,4.15017736]
[1758286287297,3.47468675,240.99,240.96,0.68]
[1758286288799,3.47468675,240.99,240.95,4.15017736]
[1758286289101,3.47468675,240.99,240.95,4.83017736]
[1758286289493,3.47468675,240.99,240.95,4.15017736]
[1758286289700,3.47468675,240.99,240.96,0.68]
[1758286290484,6.93424173,240.99,240.94,2.16620727]
[1758286290800,4.70909047,240.98,240.94,2.84620727]
[1758286291006,1.92478877,240.98,240.94,2.84620727]
[1758286291485,0.69,240.97,240.94,2.84620727]
[1758286296021,6.0742738,241.0,240.95,0.68]
[1758286296198,2.7824446,240.99,240.95,0.68]
[1758286296403,3.4724446,240.99,240.95,0.68]
[1758286296818,0.69,240.98,240.95,0.68]
[1758286297618,2.7824446,240.99,240.95,0.68]
[1758286297804,0.69,240.99,240.95,0.68]
[1758286298693,0.69,240.98,240.95,0.68]
[1758286300209,3.47164768,240.99,240.95,0.68]
[1758286300406,0.69,240.98,240.95,0.68]
[1758286303194,0.69,240.98,240.94,6.31657175]
[1758286303404,0.69,240.98,240.94,6.99657175]
[1758286304310,0.69,240.98,240.94,6.31657175]
[1758286304500,0.69,241.01,240.95,0.68]
[1758286304992,1.92478877,241.01,240.95,0.68]
[1758286305197,4.70624751,241.01,240.95,0.68]
[1758286305404,1.92478877,241.01,240.95,0.68]
[1758286305600,8.85548593,241.01,240.95,4.83015305]
[1758286305820,0.69,241.0,240.95,4.83015305]
[1758286306004,0.69,241.0,240.96,0.68]
[1758286309331,0.69,241.0,240.96,4.83005843]
[1758286309704,0.69,241.0,240.96,0.68]
[1758286312031,0.69,241.0,240.96,4.83005987]
[1758286312215,0.69,241.0,240.97,0.68]
[1758286312416,0.69,241.0,240.96,4.15005987]
[1758286312615,0.69,241.0,240.96,4.83005987]
[1758286313826,4.14921901,241.01,240.97,0.68]
[1758286315735,4.84921901,241.01,240.97,0.68]
[1758286317228,10.92847102,241.01,240.97,0.66]
[1758286317732,4.84944306,241.0,240.95,4.81005987]
[1758286317903,6.92999758,241.0,240.94,2.16620727]
[1758286318105,9.55918972,241.0,240.95,0.66]
[1758286318438,12.85788721,241.0,240.95,0.66]
[1758286318638,12.85788721,241.0,240.95,0.72]
[1758286319022,12.15788721,241.0,240.95,0.72]
[1758286319226,0.68,240.99,240.95,0.72]
[1758286320418,4.82957511,240.99,240.95,0.72]
[1758286320930,4.14957511,240.99,240.95,0.72]
[1758286321431,4.82957511,240.99,240.95,0.72]
[1758286322138,6.75876725,240.99,240.95,0.72]
[1758286322934,6.75876725,240.99,240.94,6.07925201]
[1758286323125,6.75876725,240.99,240.95,0.72]
[1758286323832,9.53859964,240.99,240.95,0.72]
[1758286324220,7.6094075,240.99,240.95,0.72]
[1758286324545,9.53859964,240.99,240.95,0.72]
[1758286324711,6.75876725,240.99,240.95,0.72]
[1758286324918,9.5380459,240.99,240.95,0.72]
[1758286325342,6.75876725,240.99,240.95,0.72]
[1758286325552,9.5382454,240.99,240.95,0.72]
[1758286325724,6.75876725,240.99,240.95,0.72]
[1758286326253,8.30015401,240.99,240.96,0.72]
[1758286326754,8.98015401,240.99,240.94,0.72]
[1758286326918,8.98015401,240.99,240.95,0.72]
[1758286328127,1.92919214,241.0,240.94,4.15037188]
[1758286328326,9.53722465,241.0,240.94,4.87037188]
[1758286328530,2.77863189,240.99,240.94,4.87037188]
[1758286328730,2.77863189,240.99,240.95,0.72]
[1758286329020,18.14675871,241.0,240.96,0.72]
[1758286329225,2.77814666,240.99,240.96,0.72]
[1758286330147,7.60777225,240.99,240.94,0.72]
[1758286330346,7.60777225,240.99,240.93,17.46793168]
[1758286330541,7.60777225,240.99,240.95,0.72]
[1758286331425,4.82962559,240.99,240.95,0.72]
[1758286332749,0.68,240.99,240.95,0.72]
[1758286333134,17.4667432,241.0,240.96,0.72]
[1758286333336,18.1467432,241.0,240.96,0.72]
[1758286333536,0.68,240.99,240.94,4.15037476]
[1758286333735,0.68,240.99,240.95,0.72]
[1758286333932,11.38816595,241.0,240.96,0.72]
[1758286334136,4.82921453,241.01,240.96,0.72]
[1758286334444,7.60715524,241.01,240.97,0.72]
[1758286335146,0.68,241.0,240.95,4.8701709]
[1758286335353,0.68,241.0,240.96,0.72]
[1758286335948,9.53634738,241.01,240.95,4.1501709]
[1758286336150,21.99870068,241.01,240.93,4.15058315]
[1758286336442,2.77794071,241.0,240.96,0.72]
[1758286337033,2.77794071,241.0,240.94,14.39154545]
[1758286337244,2.77652277,241.0,240.95,0.72]
[1758286338446,3.45652277,241.0,240.96,0.72]
[1758286339844,2.77652277,241.0,240.95,4.15016861]
[1758286340027,2.77652277,241.0,240.96,0.72]
[1758286340347,3.45652277,241.0,240.96,0.72]
[1758286341737,2.77652277,241.0,240.96,4.87002455]
[1758286341939,2.77652277,241.0,240.97,0.72]
[1758286342250,2.77652277,241.0,240.98,0.72]
[1758286342435,2.77867471,241.0,240.96,4.15002455]
[1758286342638,2.77867471,241.0,240.97,0.72]
[1758286343729,2.77867471,241.0,240.98,0.72]
[1758286343933,2.77867471,241.0,240.97,0.72]
[1758286344136,2.77867471,241.0,240.96,4.87002455]
[1758286344856,2.77867471,241.0,240.97,0.72]
[1758286345150,898.90857046,241.01,240.97,0.72]
[1758286345752,898.90857046,241.01,240.96,4.15002455]
[1758286346052,0.69,241.0,240.96,4.83002455]
[1758286347452,898.91857046,241.01,240.96,4.83002455]